[Event "Silves Open 2025"]
[Site "Fissul"]
[Date "2025.03.04"]
[Round "5.26"]
[White "Paiva, Manuel Maria Fonseca"]
[Black "Ribeiro, Margarida"]
[Result "1-0"]
[Annotator "TA"]
[ECO "C56"]
[WhiteElo "1904"]
[BlackElo "1519"]
[PlyCount "27"]
[EventDate "2025.03.03"]
[EventType "swiss"]
[EventCountry "POR"]
[SourceTitle "playchess.com"]
[Source "ChessBase"]
[SourceQuality "1"]
[TimeControl "5400+30"]

{[%evp 11,27,-109,-119,-111,-51,-51,83,70,396,401,418,390,1277,1256,1243,1258,1250,1253]} 1. e4 {[%emt 0:00:14][%cal Be2e4,Be4e5][%mdl 32]} e5 {[%emt 0:00:04]} 2. Nf3 {[%emt 0:00:04][%cal Bg1f3,Bf3g5,Bg5h7][%mdl 32]} Nc6 {[%emt 0:00:04]} 3. d4 {[%emt 0:00:05]} exd4 {[%emt 0:00:04]} 4. Bc4 {[%emt 0:00:04]} Nf6 {[%emt 0:01:05]} 5. e5 {[%emt 0:00:06]} Ng4 {[%emt 0:01:05]} 6. Bxf7+ {[%emt 0:01:57]} Kxf7 {[%emt 0:02:34]} 7. Ng5+ {[%emt 0:00:35] C56: Two Knights: 4 d4 exd4 5 0-0 Nxe4.} Ke8 {[%emt 0:01:03]} (7... Kg8 $17 8. Qf3 (8. Qxg4 $2 h6 $17) 8... Bb4+ (8... Ncxe5 9. Qd5+) 9. c3 Qe7 (9... Ngxe5 10. Qd5+ Kf8 11. O-O $19) 10. Qd5+ Kf8) 8. Qxg4 $15 {[%emt 0:00:07]} Be7 {[%emt 0:01:46]} (8... d6 $1 $15 {keeps the upper hand.} 9. Qf3 (9. e6 Qf6 $17) 9... Qe7 (9... dxe5 10. Qf7#) (9... Nxe5 10. Qd5 $17)) 9. Nxh7 {[%emt 0:07:01] White is better. White is more active.} Nxe5 {[%emt 0:09:06][%mdl 8192]} (9... Kf7 $1 $14 10. Ng5+ Kg8) 10. Qxg7 $18 {[%emt 0:00:12]} Nf7 $146 {[%emt 0:02:12]} (10... Rxh7 11. Qxh7 d6 12. Qg8+ Kd7 13. Qxd8+ Bxd8 14. f4 Nc4 15. b3 Nb6 16. O-O c5 {1-0 Granda Rodriguez,J (1897)-Lemus Lazo,D (1649) San Cristobal de La Laguna rapid op 2024 (5)}) 11. O-O {[%emt 0:01:03][%cal Of1e1] [#] White wants to mate with Re1!.} c6 $2 {[%emt 0:10:44]} (11... d5 12. Re1 Qd6) 12. Re1 {[%emt 0:01:33][%csl Gg7][%cal Rh7f6] White is clearly winning.} Qa5 {[%emt 0:00:32]} 13. Bd2 {[%emt 0:05:58]} Qc5 {[%emt 0:04:25]} 14. Bg5 {[%emt 0:01:14] Black got outplayed after the opening.   Weighted Error Value: White=0.03 (flawless) /Black=1.34  Loses game:     	---       	Black=1      Mistake:       	---       	Black=3      OK:         	White=2     	---        Best:        	White=2     	Black=1} 1-0

[Event "Silves Open 2025"]
[Site "Fissul"]
[Date "2025.03.04"]
[Round "5.27"]
[White "De Kruif, Kees"]
[Black "Bravo Galvez, Ricardo"]
[Result "*"]
[Annotator "NA RC"]
[ECO "A86"]
[WhiteElo "1857"]
[BlackElo "2098"]
[PlyCount "84"]
[EventDate "2025.03.03"]
[EventType "swiss"]
[EventCountry "POR"]
[SourceTitle "playchess.com"]
[Source "ChessBase"]
[SourceQuality "1"]
[TimeControl "5400+30"]

1. d4 f5 2. g3 Nf6 3. Bg2 g6 4. c4 Bg7 5. Nc3 O-O 6. e3 d6 7. Nge2 c6 8. O-O Qc7 9. b4 Be6 10. Qd3 Bf7 11. Rb1 Nbd7 12. c5 e5 13. dxe5 dxe5 14. e4 Rad8 15. Qc2 Rfe8 16. Be3 Ng4 17. Bg5 Bf6 18. Bc1 Bg7 19. exf5 gxf5 20. Qxf5 Nxh2 21. Kxh2 Bg6 22. Qg4 Nf6 23. Qh4 Bxb1 24. Bg5 Bg6 25. Bxf6 Bxf6 26. Qxf6 Rf8 27. Qg5 Rf5 28. Qe3 Rd3 29. Qc1 Qd7 30. Ne4 Qf7 31. Nd6 Rh5+ 32. Kg1 Qxa2 33. Nc3 Qe6 34. Nce4 Rd4 35. f4 Kg7 36. Ng5 Qb3 37. f5 Qxg3 38. f6+ Kg8 39. f7+ Bxf7 40. Ngxf7 Qh2+ 41. Kf2 Rf4+ 42. Ke1 {[%emt 0:20:33]} Qg3+ {[%emt 0:58:07]} *

[Event "Silves Open 2025"]
[Site "Fissul"]
[Date "2025.03.04"]
[Round "5.27"]
[White "De Kruif, Kees"]
[Black "Bravo Galvez, Ricardo"]
[Result "1/2-1/2"]
[Annotator "NA RC"]
[ECO "A00"]
[WhiteElo "1857"]
[BlackElo "2098"]
[PlyCount "40"]
[EventDate "2025.03.03"]
[EventType "swiss"]
[EventCountry "POR"]
[SourceTitle "playchess.com"]
[Source "ChessBase"]
[SourceQuality "1"]
[TimeControl "5400+30"]

1. b4 {[%emt 0:00:03]} d5 {[%emt 0:03:00]} 2. Bb2 {[%emt 0:00:30]} Qd6 {[%emt 0:00:30]} 3. a3 {[%emt 0:00:30]} e5 {[%emt 0:00:30]} 4. e3 {[%emt 0:00:30]} Be6 {[%emt 0:00:30]} 5. Nf3 {[%emt 0:00:30]} f6 {[%emt 0:00:30]} 6. Be2 {[%emt 0:00:30]} Nh6 {[%emt 0:00:30]} 7. d3 {[%emt 0:00:30]} Be7 {[%emt 0:00:30]} 8. Nbd2 {[%emt 0:00:30]} O-O {[%emt 0:00:30]} 9. c4 {[%emt 0:00:30]} b6 {[%emt 0:00:30]} 10. O-O {[%emt 0:00:30]} c5 {[%emt 0:00:30]} 11. bxc5 {[%emt 0:00:30]} Qxc5 {[%emt 0:00:30]} 12. d4 {[%emt 0:00:30]} exd4 {[%emt 0:00:30]} 13. Nxd4 {[%emt 0:00:30]} Bf7 {[%emt 0:00:30]} 14. N2b3 {[%emt 0:00:30]} Qc8 {[%emt 0:00:30]} 15. cxd5 {[%emt 0:00:30]} Bxd5 {[%emt 0:00:30]} 16. Rc1 {[%emt 0:00:30]} Qb7 {[%emt 0:00:30]} 17. Bf3 {[%emt 0:00:30]} Bxf3 {[%emt 0:00:30]} 18. Qxf3 {[%emt 0:00:30]} Qxf3 {[%emt 0:00:30]} 19. Nxf3 {[%emt 0:00:30]} Na6 {[%emt 1:01:58]} 20. Nbd4 {[%emt 0:43:46]} Nc5 {[%emt 0:00:30]} 1/2-1/2

[Event "Silves Open 2025"]
[Site "Fissul"]
[Date "2025.03.04"]
[Round "5.28"]
[White "Leal, Jose Alberto"]
[Black "Mostafa, Hazem Farouk Mahmoud"]
[Result "0-1"]
[Annotator "NA RC COMBH"]
[ECO "B09"]
[WhiteElo "1688"]
[BlackElo "1769"]
[PlyCount "112"]
[EventDate "2025.03.03"]
[EventType "swiss"]
[EventCountry "POR"]
[SourceTitle "playchess.com"]
[Source "ChessBase"]
[SourceQuality "1"]
[TimeControl "5400+30"]

1. d4 {[%emt 0:00:06]} d6 {[%emt 0:00:10]} 2. Nc3 {[%emt 0:00:26]} Nf6 {[%emt 0:00:10]} 3. e4 {[%emt 0:00:42]} g6 {[%emt 0:00:07]} 4. Be2 {[%emt 0:02:09]} Bg7 {[%emt 0:00:09]} 5. f4 {[%emt 0:00:49]} c6 {[%emt 0:00:23]} 6. Nf3 {[%emt 0:00:19]} b5 {[%emt 0:00:49]} 7. a3 {[%emt 0:00:37]} Bb7 {[%emt 0:01:06]} 8. O-O {[%emt 0:00:27]} O-O {[%emt 0:01:08]} 9. h3 {[%emt 0:02:36]} Qc7 {[%emt 0:00:57]} 10. Be3 {[%emt 0:01:13]} Nbd7 {[%emt 0:01:25]} 11. Bd3 {[%emt 0:04:41]} a6 {[%emt 0:00:37]} 12. Qe1 {[%emt 0:01:33]} c5 {[%emt 0:00:44]} 13. d5 {[%emt 0:05:51]} c4 {[%emt 0:02:00]} 14. Be2 {[%emt 0:00:27]} Nc5 {[%emt 0:00:09]} 15. e5 {[%emt 0:01:21]} Nxd5 {[%emt 0:00:13]} 16. Nxd5 {[%emt 0:01:17]} Bxd5 {[%emt 0:00:12]} 17. Rd1 {[%emt 0:01:14]} Be4 {[%emt 0:01:51]} 18. exd6 {[%emt 0:06:54]} exd6 {[%emt 0:00:11]} 19. Bd4 {[%emt 0:02:24]} Bxc2 {[%emt 0:07:30]} 20. Bxg7 {[%emt 0:00:55]} Bxd1 {[%emt 0:00:07]} 21. Bxf8 {[%emt 0:00:29]} Bxe2 {[%emt 0:00:13]} 22. Bxd6 {[%emt 0:00:52]} Qxd6 {[%emt 0:00:16]} 23. Qxe2 {[%emt 0:00:12]} Qxf4 {[%emt 0:00:17]} 24. Qe7 {[%emt 0:03:07]} Nd3 {[%emt 0:12:41]} 25. Ng5 {[%emt 0:09:56]} Qd4+ {[%emt 0:02:15]} 26. Kh1 {[%emt 0:06:03]} Nf2+ {[%emt 0:00:11]} 27. Kh2 {[%emt 0:02:19]} Ra7 {[%emt 0:00:07]} 28. Qe8+ {[%emt 0:05:43]} Kg7 {[%emt 0:00:16]} 29. Nf3 {[%emt 0:09:59]} Qd6+ {[%emt 0:08:46]} 30. Kg1 {[%emt 0:08:10]} Re7 {[%emt 0:00:43]} 31. Qa8 {[%emt 0:03:13]} Nd3 {[%emt 0:00:09]} 32. Qc8 {[%emt 0:07:12]} Nxb2 {[%emt 0:01:31]} 33. Qg4 {[%emt 0:00:48]} h5 {[%emt 0:11:24]} 34. Qg5 {[%emt 0:01:35]} Qxa3 {[%emt 0:00:23]} 35. Qd5 {[%emt 0:01:14]} Qe3+ {[%emt 0:00:34]} 36. Kh1 {[%emt 0:02:19]} Nd3 {[%emt 0:00:22]} 37. Ng5 {[%emt 0:01:43]} Nf2+ {[%emt 0:00:22]} 38. Kh2 {[%emt 0:00:27]} Qe5+ {[%emt 0:00:13]} 39. Qxe5+ {[%emt 0:00:44]} Rxe5 {[%emt 0:00:02]} 40. Rxf2 {[%emt 0:01:21]} Rxg5 {[%emt 0:00:02]} 41. Ra2 {[%emt 0:00:08]} c3 {[%emt 0:00:34]} 42. Rxa6 {[%emt 0:07:55]} c2 {[%emt 0:00:10]} 43. Rc6 {[%emt 0:00:00]} b4 {[%emt 0:00:44]} 44. Rxc2 {[%emt 0:00:00]} b3 {[%emt 0:00:20]} 45. Rb2 {[%emt 0:00:00]} Rb5 {[%emt 0:00:09]} 46. Kg3 {[%emt 0:00:00]} g5 {[%emt 0:00:02]} 47. Kf3 {[%emt 0:00:00]} f5 {[%emt 0:00:25]} 48. Ke3 {[%emt 0:00:00]} Kf6 {[%emt 0:00:15]} 49. Kd3 {[%emt 0:00:00]} f4 {[%emt 0:00:32]} 50. Kc4 {[%emt 0:00:00]} Rb8 {[%emt 0:00:25]} 51. Rxb3 {[%emt 0:00:00]} Rxb3 {[%emt 0:00:12]} 52. Kxb3 {[%emt 0:00:00]} Kf5 {[%emt 0:00:09]} 53. Kc3 {[%emt 0:00:00]} g4 {[%emt 0:00:14]} 54. hxg4+ {[%emt 0:00:00]} Kxg4 {[%emt 0:00:34]} 55. Kd3 {[%emt 0:00:00]} Kg3 {[%emt 0:00:23]} 56. Ke4 {[%emt 0:00:00]} h4 {[%emt 0:00:15]} 0-1

[Event "Silves Open 2025"]
[Site "Fissul"]
[Date "2025.03.04"]
[Round "5.29"]
[White "Dumont, Andre"]
[Black "Almeida, Luis Eduardo dos Rei"]
[Result "1/2-1/2"]
[Annotator "NA COMBH"]
[ECO "A05"]
[WhiteElo "1891"]
[BlackElo "1841"]
[PlyCount "63"]
[EventDate "2025.03.03"]
[EventType "swiss"]
[EventCountry "POR"]
[SourceTitle "playchess.com"]
[Source "ChessBase"]
[SourceQuality "1"]
[TimeControl "5400+30"]

1. Nf3 {[%emt 0:00:41]} Nf6 {[%emt 0:00:15]} 2. b3 {[%emt 0:00:37]} g6 {[%emt 0:01:29]} 3. Bb2 {[%emt 0:00:12]} Bg7 {[%emt 0:00:28]} 4. g4 {[%emt 0:00:10]} d5 {[%emt 0:02:58]} 5. g5 {[%emt 0:00:31]} Nh5 {[%emt 0:00:06]} 6. Bxg7 {[%emt 0:00:11]} Nxg7 {[%emt 0:00:21]} 7. e3 {[%emt 0:01:09]} Nc6 {[%emt 0:07:10]} 8. d4 {[%emt 0:03:51]} Bg4 {[%emt 0:14:20]} 9. Be2 {[%emt 0:02:21]} a6 {[%emt 0:07:38]} 10. h4 {[%emt 0:02:48]} O-O {[%emt 0:12:46]} 11. Ne5 {[%emt 0:09:22]} Bxe2 {[%emt 0:01:40]} 12. Qxe2 {[%emt 0:00:06]} Nxe5 {[%emt 0:00:36]} 13. dxe5 {[%emt 0:00:03]} Qd7 {[%emt 0:02:12]} 14. Nd2 {[%emt 0:00:49]} b5 {[%emt 0:03:20]} 15. O-O-O {[%emt 0:00:27]} c5 {[%emt 0:08:07]} 16. h5 {[%emt 0:00:08]} Nxh5 {[%emt 0:04:47]} 17. Rxh5 {[%emt 0:00:38]} gxh5 {[%emt 0:00:12]} 18. Qxh5 {[%emt 0:00:45]} Qf5 {[%emt 0:08:50]} 19. Rh1 {[%emt 0:01:10]} c4 {[%emt 0:02:22]} 20. Nf3 {[%emt 0:02:39]} Qg6 {[%emt 0:04:56]} 21. Qg4 {[%emt 0:03:02]} cxb3 {[%emt 0:00:38]} 22. axb3 {[%emt 0:00:09]} Rac8 {[%emt 0:01:03]} 23. Nd4 {[%emt 0:00:13]} Qe4 {[%emt 0:03:18]} 24. Qh3 {[%emt 0:01:31]} e6 {[%emt 0:04:28]} 25. f3 {[%emt 0:03:45]} Qg6 {[%emt 0:00:18]} 26. f4 {[%emt 0:00:31]} Rc7 {[%emt 0:02:16]} 27. Rh2 {[%emt 0:01:44]} Rfc8 {[%emt 0:00:34]} 28. f5 {[%emt 0:00:32]} exf5 {[%emt 0:02:23]} 29. Nxf5 {[%emt 0:00:11]} a5 {[%emt 0:02:33]} 30. Ne7+ {[%emt 0:01:34]} Rxe7 {[%emt 0:00:24]} 31. Qxc8+ {[%emt 0:00:10]} Kg7 {[%emt 0:00:22]} 32. Rg2 {[%emt 0:04:55]} 1/2-1/2

[Event "Silves Open 2025"]
[Site "Fissul"]
[Date "2025.03.04"]
[Round "5.30"]
[White "Pena, Helio Adelino Silva"]
[Black "Goncalves, Beatriz M A C Nunes"]
[Result "1-0"]
[Annotator "NA COMBH"]
[ECO "C54"]
[WhiteElo "1842"]
[BlackElo "1458"]
[PlyCount "123"]
[EventDate "2025.03.03"]
[EventType "swiss"]
[EventCountry "POR"]
[SourceTitle "playchess.com"]
[Source "ChessBase"]
[SourceQuality "1"]
[TimeControl "5400+30"]

1. e4 {[%emt 1:31:00]} e5 {[%emt 1:31:00]} 2. Nf3 {[%emt 0:00:30]} Nc6 {[%emt 0:00:30]} 3. Bc4 {[%emt 0:00:30]} Bc5 {[%emt 0:00:30]} 4. O-O {[%emt 0:00:30]} Nf6 {[%emt 0:00:30]} 5. d3 {[%emt 0:00:30]} h6 {[%emt 0:00:30]} 6. c3 {[%emt 0:00:30]} Na5 {[%emt 0:00:30]} 7. Bxf7+ {[%emt 0:00:30]} Kxf7 {[%emt 0:00:30]} 8. b4 {[%emt 0:00:30]} Bxb4 {[%emt 0:00:30]} 9. cxb4 {[%emt 0:00:30]} Nc6 {[%emt 0:00:30]} 10. b5 {[%emt 0:00:30]} Ne7 {[%emt 0:00:30]} 11. Nxe5+ {[%emt 0:00:30]} Ke8 {[%emt 0:00:30]} 12. Ng4 {[%emt 0:00:30]} Ng6 {[%emt 0:00:30]} 13. Bb2 {[%emt 0:00:30]} d6 {[%emt 0:00:30]} 14. Nxf6+ {[%emt 0:00:30]} gxf6 {[%emt 0:00:30]} 15. Qh5 {[%emt 0:00:30]} Rg8 {[%emt 0:00:30]} 16. f4 {[%emt 0:00:30]} Kf8 {[%emt 0:00:30]} 17. Qxh6+ {[%emt 0:00:30]} Kf7 {[%emt 0:00:30]} 18. f5 {[%emt 0:00:30]} Ne5 {[%emt 0:00:30]} 19. Qh5+ {[%emt 0:00:30]} Kf8 {[%emt 0:00:30]} 20. Bc1 {[%emt 0:00:30]} Nf7 {[%emt 0:00:30]} 21. Nc3 {[%emt 0:00:30]} c6 {[%emt 0:00:30]} 22. Be3 {[%emt 0:00:30]} Rh8 {[%emt 0:00:30]} 23. Qe2 {[%emt 0:00:30]} Ke7 {[%emt 0:00:30]} 24. Rf3 {[%emt 0:00:30]} Bd7 {[%emt 0:00:30]} 25. Rg3 {[%emt 0:00:30]} Rg8 {[%emt 0:00:30]} 26. Rg6 {[%emt 0:00:30]} Ne5 {[%emt 0:00:30]} 27. Rh6 {[%emt 0:00:30]} Rh8 {[%emt 0:00:30]} 28. d4 {[%emt 0:00:30]} Rxh6 {[%emt 0:00:30]} 29. Bxh6 {[%emt 0:00:30]} Nf7 {[%emt 0:00:30]} 30. Bf4 {[%emt 0:00:30]} Qh8 {[%emt 0:00:30]} 31. Re1 {[%emt 0:00:30]} Re8 {[%emt 0:00:30]} 32. e5 {[%emt 0:00:30]} dxe5 {[%emt 0:00:30]} 33. dxe5 {[%emt 0:00:30]} fxe5 {[%emt 0:00:30]} 34. Bxe5 {[%emt 0:00:30]} Nxe5 {[%emt 0:00:30]} 35. Qxe5+ {[%emt 0:00:30]} Qxe5 {[%emt 0:00:30]} 36. Rxe5+ {[%emt 0:00:30]} Kf6 {[%emt 0:00:30]} 37. Rxe8 {[%emt 0:00:30]} Bxe8 {[%emt 0:00:30]} 38. g4 {[%emt 0:00:30]} cxb5 {[%emt 0:00:30]} 39. Kf2 {[%emt 0:00:30]} Kg5 {[%emt 0:00:30]} 40. Kg3 {[%emt 0:00:30]} b4 {[%emt 0:00:30]} 41. h4+ {[%emt 0:00:30]} Kh6 {[%emt 0:00:30]} 42. g5+ {[%emt 0:00:30]} Kg7 {[%emt 0:00:30]} 43. Nd5 {[%emt 0:00:30]} a5 {[%emt 0:00:30]} 44. f6+ {[%emt 0:00:30]} Kf8 {[%emt 0:00:30]} 45. Nf4 {[%emt 0:00:30]} Bf7 {[%emt 0:00:30]} 46. g6 {[%emt 0:00:30]} Bxa2 {[%emt 0:00:30]} 47. h5 {[%emt 0:00:30]} b3 {[%emt 0:00:30]} 48. Ne6+ {[%emt 0:00:30]} Ke8 {[%emt 0:00:30]} 49. f7+ {[%emt 0:00:30]} Kd7 {[%emt 0:00:30]} 50. f8=Q {[%emt 0:00:30]} b2 {[%emt 0:00:30]} 51. Qg7+ {[%emt 0:00:30]} Kxe6 {[%emt 0:00:30]} 52. Qxb2 {[%emt 0:00:30]} Bd5 {[%emt 0:00:30]} 53. Qb6+ {[%emt 0:00:30]} Ke5 {[%emt 0:00:30]} 54. Qxa5 {[%emt 0:00:30]} Kd6 {[%emt 0:00:30]} 55. Qxd5+ {[%emt 0:00:30]} Kxd5 {[%emt 0:00:30]} 56. g7 {[%emt 0:00:30]} b5 {[%emt 0:00:30]} 57. g8=Q+ {[%emt 0:00:30]} Kc5 {[%emt 0:00:30]} 58. h6 {[%emt 0:00:30]} b4 {[%emt 0:00:30]} 59. h7 {[%emt 0:00:30]} Kb5 {[%emt 0:00:30]} 60. h8=Q {[%emt 0:00:30]} Ka4 {[%emt 0:00:30]} 61. Qc4 {[%emt 0:00:30]} Ka3 {[%emt 0:00:30]} 62. Qa1# {[%emt 0:00:30]} 1-0

[Event "Silves Open 2025"]
[Site "Fissul"]
[Date "2025.03.04"]
[Round "5.35"]
[White "Breitkopf, Ilian"]
[Black "Li, Leon"]
[Result "1/2-1/2"]
[Annotator "NA RC COMBH"]
[ECO "C56"]
[WhiteElo "1671"]
[BlackElo "1627"]
[PlyCount "119"]
[EventDate "2025.03.03"]
[EventType "swiss"]
[EventCountry "POR"]
[SourceTitle "playchess.com"]
[Source "ChessBase"]
[SourceQuality "1"]
[TimeControl "5400+30"]

1. e4 {[%emt 1:31:00]} e5 {[%emt 1:31:00]} 2. Nf3 {[%emt 0:00:30]} Nc6 {[%emt 0:00:30]} 3. d4 {[%emt 0:00:30]} exd4 {[%emt 0:00:30]} 4. Bc4 {[%emt 0:00:30]} Nf6 {[%emt 0:00:30]} 5. Ng5 {[%emt 0:00:30]} Ne5 {[%emt 0:00:30]} 6. Qxd4 {[%emt 0:00:30]} Nxc4 {[%emt 0:00:30]} 7. Qxc4 {[%emt 0:00:30]} d5 {[%emt 0:00:30]} 8. exd5 {[%emt 0:00:30]} Nxd5 {[%emt 0:00:30]} 9. O-O {[%emt 0:00:30]} Be7 {[%emt 0:00:30]} 10. Nc3 {[%emt 0:00:30]} c6 {[%emt 0:00:30]} 11. Re1 {[%emt 0:00:30]} O-O {[%emt 0:00:30]} 12. Nf3 {[%emt 0:00:00]} Nxc3 {[%emt 0:00:00]} 13. Qxc3 {[%emt 0:00:00]} Bf6 {[%emt 0:01:00]} 14. Qb3 {[%emt 0:01:30]} Qb6 {[%emt 0:00:00]} 15. Qxb6 {[%emt 0:00:30]} axb6 {[%emt 0:01:00]} 16. c3 {[%emt 0:00:30]} Bg4 {[%emt 0:00:30]} 17. Bg5 {[%emt 0:00:00]} Bxf3 {[%emt 0:00:00]} 18. Bxf6 {[%emt 0:00:00]} gxf6 {[%emt 0:01:00]} 19. gxf3 {[%emt 0:01:30]} Rfe8 {[%emt 0:00:00]} 20. a3 {[%emt 0:00:00]} Kf8 {[%emt 0:00:00]} 21. Kf1 {[%emt 0:00:00]} Rad8 {[%emt 0:00:00]} 22. Rxe8+ {[%emt 0:01:30]} Kxe8 {[%emt 0:02:00]} 23. Ke2 {[%emt 0:00:00]} Ke7 {[%emt 0:00:00]} 24. Ke3 {[%emt 0:01:00]} f5 {[%emt 0:01:00]} 25. Re1 {[%emt 0:00:30]} Kf6 {[%emt 0:00:30]} 26. Rg1 {[%emt 0:00:30]} Re8+ {[%emt 0:00:30]} 27. Kd3 {[%emt 0:00:30]} Rd8+ {[%emt 0:00:30]} 28. Ke3 {[%emt 0:00:30]} Rd6 {[%emt 0:00:30]} 29. Ke2 {[%emt 0:00:00]} Rd8 {[%emt 0:00:00]} 30. Rg3 {[%emt 0:00:00]} Re8+ {[%emt 0:00:00]} 31. Kd2 {[%emt 0:00:00]} h6 {[%emt 0:00:00]} 32. Rh3 {[%emt 0:00:00]} Kg6 {[%emt 0:00:00]} 33. f4 {[%emt 0:00:00]} Re4 {[%emt 0:00:00]} 34. Rh4 {[%emt 0:00:00]} Kh7 {[%emt 0:00:00]} 35. f3 {[%emt 0:00:00]} Re8 {[%emt 0:00:00]} 36. Rh3 {[%emt 0:00:00]} Rg8 {[%emt 0:00:00]} 37. Rg3 {[%emt 0:00:00]} Rxg3 {[%emt 0:04:30]} 38. hxg3 {[%emt 0:05:00]} h5 {[%emt 0:00:00]} 39. Kd3 {[%emt 0:00:00]} Kg6 {[%emt 0:00:00]} 40. b4 {[%emt 0:00:00]} h4 {[%emt 0:00:00]} 41. gxh4 {[%emt 0:00:00]} Kh5 {[%emt 0:00:00]} 42. c4 {[%emt 0:00:00]} c5 {[%emt 0:00:00]} 43. b5 {[%emt 0:00:00]} Kxh4 {[%emt 0:00:00]} 44. Kd2 {[%emt 0:00:00]} Kh3 {[%emt 0:00:00]} 45. Ke1 {[%emt 0:00:00]} Kg3 {[%emt 0:00:00]} 46. Ke2 {[%emt 0:00:00]} Kxf4 {[%emt 0:00:00]} 47. Kf2 {[%emt 0:00:00]} Ke5 {[%emt 0:00:00]} 48. Ke3 {[%emt 0:00:00]} f4+ {[%emt 0:00:00]} 49. Kd3 {[%emt 0:00:00]} f6 {[%emt 0:00:00]} 50. Kc3 {[%emt 0:00:00]} f5 {[%emt 0:00:00]} 51. Kd3 {[%emt 0:00:00]} Kf6 {[%emt 0:00:00]} 52. Ke2 {[%emt 0:00:00]} Ke6 {[%emt 0:00:00]} 53. Kd2 {[%emt 0:00:00]} Ke5 {[%emt 0:00:00]} 54. Kd3 {[%emt 0:00:00]} Ke6 {[%emt 0:00:00]} 55. Kd2 {[%emt 0:00:00]} Kf6 {[%emt 0:00:00]} 56. Ke2 {[%emt 0:00:00]} Kg5 {[%emt 0:00:00]} 57. Kf2 {[%emt 0:00:00]} Kf6 {[%emt 0:00:00]} 58. Ke2 {[%emt 0:00:00]} Ke7 {[%emt 0:00:00]} 59. Kd3 {[%emt 0:00:00]} Ke6 {[%emt 0:00:00]} 60. Kd2 {[%emt 0:00:00]} 1/2-1/2

[Event "Silves Open 2025"]
[Site "Fissul"]
[Date "2025.03.04"]
[Round "5.38"]
[White "Nguyen, Tri Khoi"]
[Black "Machado, Manuel Antonio Ribei"]
[Result "1/2-1/2"]
[Annotator "NA COMBH"]
[ECO "D60"]
[WhiteElo "1630"]
[BlackElo "1796"]
[PlyCount "105"]
[EventDate "2025.03.03"]
[EventType "swiss"]
[EventCountry "POR"]
[SourceTitle "playchess.com"]
[Source "ChessBase"]
[SourceQuality "1"]
[TimeControl "5400+30"]

1. d4 {[%emt 0:00:05]} d5 {[%emt 0:00:08]} 2. c4 {[%emt 0:00:06]} e6 {[%emt 0:00:23]} 3. Nf3 {[%emt 0:00:09]} Nf6 {[%emt 0:00:18]} 4. Nc3 {[%emt 0:00:09]} c6 {[%emt 0:00:44]} 5. Bg5 {[%emt 0:00:16]} Be7 {[%emt 0:00:46]} 6. e3 {[%emt 0:00:11]} h6 {[%emt 0:01:12]} 7. Bh4 {[%emt 0:00:19]} Nbd7 {[%emt 0:03:01]} 8. Bd3 {[%emt 0:00:39]} dxc4 {[%emt 0:01:00]} 9. Bxc4 {[%emt 0:00:18]} O-O {[%emt 0:07:47]} 10. O-O {[%emt 0:00:08]} b5 {[%emt 0:05:44]} 11. Bb3 {[%emt 0:03:50]} Bb7 {[%emt 0:07:29]} 12. Rc1 {[%emt 0:00:47]} Rc8 {[%emt 0:08:29]} 13. Qe2 {[%emt 0:00:24]} a6 {[%emt 0:07:45]} 14. Rfd1 {[%emt 0:00:08]} Nd5 {[%emt 0:05:12]} 15. Bxe7 {[%emt 0:03:26]} Qxe7 {[%emt 0:02:54]} 16. Nxd5 {[%emt 0:07:09]} exd5 {[%emt 0:01:44]} 17. Ne1 {[%emt 0:03:58]} Rfe8 {[%emt 0:07:59]} 18. Nd3 {[%emt 0:01:41]} c5 {[%emt 0:03:01]} 19. dxc5 {[%emt 0:02:42]} Nxc5 {[%emt 0:00:42]} 20. Nxc5 {[%emt 0:00:13]} Rxc5 {[%emt 0:00:24]} 21. Rxc5 {[%emt 0:00:51]} Qxc5 {[%emt 0:00:08]} 22. Qd2 {[%emt 0:00:39]} Rd8 {[%emt 0:06:29]} 23. Qd4 {[%emt 0:00:20]} Rc8 {[%emt 0:09:49]} 24. Qxc5 {[%emt 0:01:02]} Rxc5 {[%emt 0:00:15]} 25. Kf1 {[%emt 0:00:14]} g6 {[%emt 0:06:02]} 26. f3 {[%emt 0:08:39]} Kg7 {[%emt 0:01:31]} 27. Ke2 {[%emt 0:00:14]} a5 {[%emt 0:01:00]} 28. a3 {[%emt 0:02:22]} Bc6 {[%emt 0:03:13]} 29. Kd2 {[%emt 0:00:27]} a4 {[%emt 0:00:37]} 30. Ba2 {[%emt 0:00:05]} f5 {[%emt 0:00:59]} 31. Rc1 {[%emt 0:00:22]} Rxc1 {[%emt 0:00:58]} 32. Kxc1 {[%emt 0:00:08]} Kf6 {[%emt 0:00:14]} 33. f4 {[%emt 0:00:23]} g5 {[%emt 0:00:16]} 34. g3 {[%emt 0:00:21]} g4 {[%emt 0:00:41]} 35. Kd2 {[%emt 0:00:11]} Ke7 {[%emt 0:00:48]} 36. Kc3 {[%emt 0:00:10]} Ke6 {[%emt 0:00:36]} 37. Kd4 {[%emt 0:01:39]} Kd6 {[%emt 0:00:19]} 38. Bb1 {[%emt 0:00:10]} Bd7 {[%emt 0:00:11]} 39. Ba2 {[%emt 0:12:09]} Bc6 {[%emt 0:00:43]} 40. b3 {[%emt 0:00:12]} axb3 {[%emt 0:00:38]} 41. Bxb3 {[%emt 0:00:02]} h5 {[%emt 0:01:04]} 42. Ba2 {[%emt 0:00:22]} Bb7 {[%emt 0:00:16]} 43. Bb1 {[%emt 0:01:24]} Bc8 {[%emt 0:00:29]} 44. Bd3 {[%emt 0:01:23]} Bd7 {[%emt 0:00:15]} 45. Be2 {[%emt 0:00:14]} Bc6 {[%emt 0:00:23]} 46. Bd1 {[%emt 0:00:14]} Bd7 {[%emt 0:00:27]} 47. Bc2 {[%emt 0:00:08]} Be6 {[%emt 0:00:26]} 48. a4 {[%emt 0:04:56]} bxa4 {[%emt 0:01:01]} 49. Bxa4 {[%emt 0:00:02]} Bf7 {[%emt 0:00:46]} 50. Bb5 {[%emt 0:00:19]} Bg6 {[%emt 0:00:38]} 51. Ba6 {[%emt 0:00:40]} Bh7 {[%emt 0:00:53]} 52. Bb7 {[%emt 0:02:47]} Bg8 {[%emt 0:00:19]} 53. Bc8 {[%emt 0:00:26]} 1/2-1/2